[Event "Titled Tuesday Blitz February 14 Late 2023"]
[White "Cardoso Cardoso, Jose Gabriel"]
[Black "Freile Martin, Javier"]
[WhiteFideId "4430492"]
[BlackFideId "3600165"]
[WhiteElo "2492"]
[BlackElo "2329"]
[Result "1-0"]
[Round "01"]
[TimeControl "180+2"]
[Date "2023.02.14"]
[WhiteClock "0:00:44"]
[BlackClock "0:00:04"]

1. c4 {[%clk 0:02:59]}  Nf6 {[%clk 0:02:55]} 2. Nc3 {[%clk 0:02:58]}  g6 {[%clk 0:02:55]} 3. g3 {[%clk 0:02:58]}  Bg7 {[%clk 0:02:55]} 4. Bg2 {[%clk 0:02:58]}  O-O {[%clk 0:02:55]} 5. d3 {[%clk 0:02:58]}  d6 {[%clk 0:02:54]} 6. e4 {[%clk 0:02:54]}  e5 {[%clk 0:02:53]} 7. Nge2 {[%clk 0:02:53]}  Nbd7 {[%clk 0:02:53]} 8. h3 {[%clk 0:02:52]}  a6 {[%clk 0:02:53]} 9. Be3 {[%clk 0:02:47]}  b5 {[%clk 0:02:48]} 10. b3 {[%clk 0:02:42]}  c6 {[%clk 0:02:42]} 11. Qd2 {[%clk 0:02:40]}  Re8 {[%clk 0:02:41]} 12. O-O {[%clk 0:02:38]}  Bb7 {[%clk 0:02:41]} 13. Rad1 {[%clk 0:02:37]}  b4 {[%clk 0:02:18]} 14. Nb1 {[%clk 0:02:09]}  a5 {[%clk 0:02:17]} 15. f4 {[%clk 0:02:02]}  exf4 {[%clk 0:02:16]} 16. Nxf4 {[%clk 0:01:57]}  Qe7 {[%clk 0:02:02]} 17. Rde1 {[%clk 0:01:51]}  Qf8 {[%clk 0:01:50]} 18. Kh2 {[%clk 0:01:48]}  c5 {[%clk 0:01:45]} 19. a4 {[%clk 0:01:44]}  Ne5 {[%clk 0:01:42]} 20. Qd1 {[%clk 0:01:38]}  Re7 {[%clk 0:01:33]} 21. Qe2 {[%clk 0:01:29]}  Rae8 {[%clk 0:01:32]} 22. Nd2 {[%clk 0:01:28]}  Nfd7 {[%clk 0:00:44]} 23. Rf2 {[%clk 0:01:13]}  f5 {[%clk 0:00:38]} 24. Ref1 {[%clk 0:01:10]}  Rf7 {[%clk 0:00:34]} 25. exf5 {[%clk 0:01:00]}  Bxg2 {[%clk 0:00:32]} 26. fxg6 {[%clk 0:01:00]}  Bxf1 {[%clk 0:00:24]} 27. gxf7+ {[%clk 0:00:59]}  Qxf7 {[%clk 0:00:24]} 28. Qxf1 {[%clk 0:00:56]}  Qe7 {[%clk 0:00:16]} 29. Nd5 {[%clk 0:00:54]}  Qd8 {[%clk 0:00:14]} 30. Ne4 {[%clk 0:00:53]}  Ng6 {[%clk 0:00:12]} 31. Bg5 {[%clk 0:00:52]}  Qc8 {[%clk 0:00:11]} 32. Nxd6 {[%clk 0:00:51]}  Qc6 {[%clk 0:00:09]} 33. Nxe8 {[%clk 0:00:50]}  Nde5 {[%clk 0:00:08]} 34. Nxg7 {[%clk 0:00:47]}  Kxg7 {[%clk 0:00:07]} 35. Bf6+ {[%clk 0:00:45]}  Kh6 {[%clk 0:00:05]} 36. Qc1+ {[%clk 0:00:44]}  Kh5 {[%clk 0:00:04]} 37. Qg5# {[%clk 0:00:44]} 1-0


[Site "https://www.chess.com"]

[Event "Titled Tuesday Blitz February 14 Late 2023"]
[White "Rorrer, Grayson"]
[Black "Vaglio Mattey, Emanuel"]
[WhiteFideId "30944996"]
[BlackFideId "6504167"]
[WhiteElo "2263"]
[BlackElo "2155"]
[Result "0-1"]
[Round "01"]
[TimeControl "180+2"]
[Date "2023.02.14"]
[WhiteClock "0:00:12"]
[BlackClock "0:00:35"]

1. e4 {[%clk 0:02:59]}  c6 {[%clk 0:02:59]} 2. d4 {[%clk 0:02:58]}  d5 {[%clk 0:03:00]} 3. exd5 {[%clk 0:02:58]}  cxd5 {[%clk 0:03:00]} 4. Bd3 {[%clk 0:02:59]}  Nf6 {[%clk 0:03:00]} 5. h3 {[%clk 0:03:00]}  g6 {[%clk 0:03:00]} 6. Nf3 {[%clk 0:03:00]}  Bg7 {[%clk 0:03:01]} 7. O-O {[%clk 0:03:00]}  O-O {[%clk 0:03:01]} 8. Bf4 {[%clk 0:03:01]}  Nc6 {[%clk 0:03:01]} 9. c3 {[%clk 0:03:01]}  Bf5 {[%clk 0:03:02]} 10. Ne5 {[%clk 0:03:00]}  Bxd3 {[%clk 0:02:59]} 11. Nxd3 {[%clk 0:03:01]}  Ne4 {[%clk 0:02:49]} 12. Nd2 {[%clk 0:02:59]}  Nd6 {[%clk 0:02:19]} 13. Re1 {[%clk 0:02:47]}  e6 {[%clk 0:02:02]} 14. Qf3 {[%clk 0:02:44]}  Rc8 {[%clk 0:01:28]} 15. g3 {[%clk 0:02:38]}  b6 {[%clk 0:01:17]} 16. Kg2 {[%clk 0:02:36]}  Nc4 {[%clk 0:01:17]} 17. h4 {[%clk 0:02:32]}  Nxd2 {[%clk 0:01:17]} 18. Bxd2 {[%clk 0:02:33]}  Na5 {[%clk 0:01:18]} 19. h5 {[%clk 0:02:31]}  Nc4 {[%clk 0:01:18]} 20. Bf4 {[%clk 0:02:30]}  g5 {[%clk 0:01:12]} 21. h6 {[%clk 0:02:27]}  Bxh6 {[%clk 0:01:11]} 22. Qh5 {[%clk 0:02:26]}  Qf6 {[%clk 0:01:11]} 23. Be5 {[%clk 0:02:05]}  Qg6 {[%clk 0:01:12]} 24. Rh1 {[%clk 0:01:57]}  Qxd3 {[%clk 0:00:54]} 25. Qxh6 {[%clk 0:01:57]}  Nxe5 {[%clk 0:00:54]} 26. dxe5 {[%clk 0:01:19]}  Qe4+ {[%clk 0:00:50]} 27. f3 {[%clk 0:01:09]}  Qc2+ {[%clk 0:00:49]} 28. Kg1 {[%clk 0:01:06]}  Qg6 {[%clk 0:00:49]} 29. Rd1 {[%clk 0:00:53]}  Qxh6 {[%clk 0:00:45]} 30. Rxh6 {[%clk 0:00:54]}  Kg7 {[%clk 0:00:46]} 31. Rh5 {[%clk 0:00:54]}  h6 {[%clk 0:00:47]} 32. Rd2 {[%clk 0:00:54]}  Kg6 {[%clk 0:00:46]} 33. Rdh2 {[%clk 0:00:55]}  Rh8 {[%clk 0:00:47]} 34. Kf2 {[%clk 0:00:55]}  d4 {[%clk 0:00:46]} 35. cxd4 {[%clk 0:00:54]}  Rc2+ {[%clk 0:00:43]} 36. Ke3 {[%clk 0:00:54]}  Rxh2 {[%clk 0:00:43]} 37. Rxh2 {[%clk 0:00:55]}  Rc8 {[%clk 0:00:42]} 38. Kd2 {[%clk 0:00:28]}  Rc4 {[%clk 0:00:40]} 39. Kd3 {[%clk 0:00:29]}  Rc1 {[%clk 0:00:36]} 40. g4 {[%clk 0:00:23]}  Rf1 {[%clk 0:00:34]} 41. Ke2 {[%clk 0:00:22]}  Ra1 {[%clk 0:00:34]} 42. a3 {[%clk 0:00:23]}  Rb1 {[%clk 0:00:34]} 43. Ke3 {[%clk 0:00:22]}  Re1+ {[%clk 0:00:35]} 44. Kd3 {[%clk 0:00:21]}  Rb1 {[%clk 0:00:36]} 45. Rf2 {[%clk 0:00:20]}  Rd1+ {[%clk 0:00:35]} 46. Kc4 {[%clk 0:00:20]}  a6 {[%clk 0:00:36]} 47. a4 {[%clk 0:00:20]}  Rc1+ {[%clk 0:00:36]} 48. Kd3 {[%clk 0:00:20]}  Rd1+ {[%clk 0:00:36]} 49. Kc3 {[%clk 0:00:20]}  Rc1+ {[%clk 0:00:37]} 50. Kd2 {[%clk 0:00:20]}  Rc4 {[%clk 0:00:37]} 51. Kd3 {[%clk 0:00:14]}  Rxa4 {[%clk 0:00:37]} 52. b3 {[%clk 0:00:15]}  Ra1 {[%clk 0:00:35]} 53. Rc2 {[%clk 0:00:14]}  Rf1 {[%clk 0:00:35]} 54. Ke2 {[%clk 0:00:14]}  Rb1 {[%clk 0:00:36]} 55. Rc3 {[%clk 0:00:14]}  b5 {[%clk 0:00:36]} 56. Kd3 {[%clk 0:00:15]}  a5 {[%clk 0:00:37]} 57. Kc2 {[%clk 0:00:15]}  Rf1 {[%clk 0:00:37]} 58. Rc5 {[%clk 0:00:15]}  Rf2+ {[%clk 0:00:36]} 59. Kb1 {[%clk 0:00:13]}  b4 {[%clk 0:00:34]} 60. Rxa5 {[%clk 0:00:13]}  Rxf3 {[%clk 0:00:35]} 61. Kc2 {[%clk 0:00:13]}  Rf2+ {[%clk 0:00:35]} 62. Kd3 {[%clk 0:00:13]}  Rf4 {[%clk 0:00:34]} 63. Rb5 {[%clk 0:00:12]}  Rxg4 {[%clk 0:00:33]} 64. Rxb4 {[%clk 0:00:13]}  h5 {[%clk 0:00:33]} 65. Rb8 {[%clk 0:00:14]}  Kg7 {[%clk 0:00:33]} 66. b4 {[%clk 0:00:15]}  h4 {[%clk 0:00:33]} 67. b5 {[%clk 0:00:14]}  h3 {[%clk 0:00:33]} 68. Ra8 {[%clk 0:00:14]}  Rg1 {[%clk 0:00:33]} 69. Ra2 {[%clk 0:00:14]}  Rg2 {[%clk 0:00:34]} 70. Ra1 {[%clk 0:00:14]}  Rb2 {[%clk 0:00:34]} 71. Rg1 {[%clk 0:00:13]}  Kh6 {[%clk 0:00:34]} 72. Rh1 {[%clk 0:00:11]}  g4 {[%clk 0:00:34]} 73. Ke3 {[%clk 0:00:11]}  Kg5 {[%clk 0:00:34]} 74. Kd3 {[%clk 0:00:11]}  Rxb5 {[%clk 0:00:35]} 75. Ke3 {[%clk 0:00:12]}  Rb3+ {[%clk 0:00:35]} 0-1


[Site "https://www.chess.com"]

[Event "Titled Tuesday Blitz February 14 Late 2023"]
[White "Gomes, Luiz Alexandre de Souza"]
[Black "Gutenev, Alexander"]
[WhiteFideId "2102790"]
[BlackFideId "4195540"]
[WhiteElo "2254"]
[BlackElo "2455"]
[Result "0-1"]
[Round "01"]
[TimeControl "180+2"]
[Date "2023.02.14"]
[WhiteClock "0:00:55"]
[BlackClock "0:01:13"]

1. e4 {[%clk 0:03:00]}  c5 {[%clk 0:02:59]} 2. Nf3 {[%clk 0:03:00]}  Nc6 {[%clk 0:03:00]} 3. d4 {[%clk 0:02:59]}  cxd4 {[%clk 0:03:00]} 4. Nxd4 {[%clk 0:03:00]}  Nf6 {[%clk 0:03:00]} 5. Nc3 {[%clk 0:02:59]}  d6 {[%clk 0:03:01]} 6. Be2 {[%clk 0:02:59]}  e5 {[%clk 0:03:01]} 7. Nb3 {[%clk 0:02:58]}  Be7 {[%clk 0:02:59]} 8. O-O {[%clk 0:02:58]}  a5 {[%clk 0:02:59]} 9. a4 {[%clk 0:02:57]}  O-O {[%clk 0:02:59]} 10. f4 {[%clk 0:02:57]}  Be6 {[%clk 0:02:57]} 11. Kh1 {[%clk 0:02:56]}  Nb4 {[%clk 0:02:57]} 12. Be3 {[%clk 0:02:54]}  Rc8 {[%clk 0:02:56]} 13. Rc1 {[%clk 0:02:43]}  d5 {[%clk 0:02:55]} 14. exd5 {[%clk 0:02:42]}  Nfxd5 {[%clk 0:02:55]} 15. Nxd5 {[%clk 0:02:43]}  Bxd5 {[%clk 0:02:47]} 16. c3 {[%clk 0:02:32]}  Nc6 {[%clk 0:02:38]} 17. fxe5 {[%clk 0:02:26]}  Nxe5 {[%clk 0:02:37]} 18. Nd4 {[%clk 0:02:26]}  Nc4 {[%clk 0:02:35]} 19. Bxc4 {[%clk 0:02:26]}  Bxc4 {[%clk 0:02:35]} 20. Re1 {[%clk 0:02:25]}  Qd7 {[%clk 0:02:23]} 21. Qf3 {[%clk 0:02:16]}  Bf6 {[%clk 0:02:13]} 22. b3 {[%clk 0:02:16]}  Bd5 {[%clk 0:02:12]} 23. Qg3 {[%clk 0:02:04]}  Rfe8 {[%clk 0:02:11]} 24. Rcd1 {[%clk 0:02:02]}  Rxc3 {[%clk 0:02:04]} 25. Qf2 {[%clk 0:01:55]}  h5 {[%clk 0:01:57]} 26. Nb5 {[%clk 0:01:52]}  Rxb3 {[%clk 0:01:56]} 27. Bb6 {[%clk 0:01:41]}  Rxe1+ {[%clk 0:01:46]} 28. Rxe1 {[%clk 0:01:41]}  Qg4 {[%clk 0:01:36]} 29. Bxa5 {[%clk 0:01:18]}  Rb2 {[%clk 0:01:35]} 30. Bd2 {[%clk 0:01:17]}  Bh4 {[%clk 0:01:27]} 31. Re8+ {[%clk 0:01:11]}  Kh7 {[%clk 0:01:27]} 32. Qf1 {[%clk 0:01:00]}  Bxg2+ {[%clk 0:01:22]} 33. Qxg2 {[%clk 0:00:58]}  Rb1+ {[%clk 0:01:22]} 34. Be1 {[%clk 0:00:56]}  Bxe1 {[%clk 0:01:17]} 35. Qc2+ {[%clk 0:00:56]}  g6 {[%clk 0:01:12]} 36. Qxb1 {[%clk 0:00:54]}  Qf3+ {[%clk 0:01:12]} 37. Kg1 {[%clk 0:00:54]}  Qf2+ {[%clk 0:01:12]} 38. Kh1 {[%clk 0:00:55]}  Qf1# {[%clk 0:01:13]} 0-1


[Site "https://www.chess.com"]

[Event "Titled Tuesday Blitz February 14 Late 2023"]
[White "Martinez Ramirez, Lennis"]
[Black "Hoffmann, Asa"]
[WhiteFideId "3509079"]
[BlackFideId "2001470"]
[WhiteElo "2426"]
[BlackElo "2185"]
[Result "1-0"]
[Round "01"]
[TimeControl "180+2"]
[Date "2023.02.14"]
[WhiteClock "0:02:05"]
[BlackClock "0:00:29"]

1. Nf3 {[%clk 0:02:59]}  d6 {[%clk 0:02:55]} 2. c4 {[%clk 0:03:00]}  e5 {[%clk 0:02:49]} 3. g3 {[%clk 0:03:00]}  c6 {[%clk 0:02:48]} 4. Bg2 {[%clk 0:03:00]}  Nf6 {[%clk 0:02:48]} 5. O-O {[%clk 0:03:00]}  Be7 {[%clk 0:02:48]} 6. Nc3 {[%clk 0:02:59]}  h6 {[%clk 0:02:44]} 7. b4 {[%clk 0:02:58]}  Bf5 {[%clk 0:02:44]} 8. d3 {[%clk 0:02:56]}  O-O {[%clk 0:02:43]} 9. e4 {[%clk 0:02:56]}  Be6 {[%clk 0:02:38]} 10. Rb1 {[%clk 0:02:55]}  Qd7 {[%clk 0:02:35]} 11. b5 {[%clk 0:02:53]}  Bh3 {[%clk 0:02:30]} 12. Nh4 {[%clk 0:02:52]}  Bxg2 {[%clk 0:02:28]} 13. Kxg2 {[%clk 0:02:52]}  Ne8 {[%clk 0:02:26]} 14. Nf5 {[%clk 0:02:47]}  Bg5 {[%clk 0:02:14]} 15. Bxg5 {[%clk 0:02:25]}  hxg5 {[%clk 0:02:08]} 16. Qh5 {[%clk 0:02:25]}  f6 {[%clk 0:01:47]} 17. bxc6 {[%clk 0:02:23]}  bxc6 {[%clk 0:01:43]} 18. h4 {[%clk 0:02:21]}  Qf7 {[%clk 0:01:34]} 19. Qg4 {[%clk 0:02:20]}  Nd7 {[%clk 0:00:55]} 20. Rb7 {[%clk 0:02:12]}  Rd8 {[%clk 0:00:49]} 21. hxg5 {[%clk 0:02:10]}  fxg5 {[%clk 0:00:43]} 22. Qxg5 {[%clk 0:02:10]}  Qf6 {[%clk 0:00:40]} 23. Qg4 {[%clk 0:02:06]}  Rf7 {[%clk 0:00:29]} 24. Rh1 {[%clk 0:02:05]} 1-0


[Site "https://www.chess.com"]

[Event "Titled Tuesday Blitz February 14 Late 2023"]
[White "Sokolovsky, Yahli"]
[Black "Kalajzic, Ivan"]
[WhiteFideId "2820242"]
[BlackFideId "14506378"]
[WhiteElo "2461"]
[BlackElo "2062"]
[Result "1/2-1/2"]
[Round "01"]
[TimeControl "180+2"]
[Date "2023.02.14"]
[WhiteClock "0:00:04"]
[BlackClock "0:00:09"]

1. b3 {[%clk 0:03:00]}  e5 {[%clk 0:02:58]} 2. Bb2 {[%clk 0:02:59]}  Nc6 {[%clk 0:02:59]} 3. e3 {[%clk 0:02:57]}  Nf6 {[%clk 0:02:58]} 4. Nf3 {[%clk 0:02:55]}  d6 {[%clk 0:02:53]} 5. d4 {[%clk 0:02:55]}  Bg4 {[%clk 0:02:49]} 6. dxe5 {[%clk 0:02:41]}  dxe5 {[%clk 0:02:43]} 7. Qxd8+ {[%clk 0:02:28]}  Rxd8 {[%clk 0:02:44]} 8. Nbd2 {[%clk 0:02:15]}  Bb4 {[%clk 0:02:36]} 9. c3 {[%clk 0:02:05]}  Ba5 {[%clk 0:02:32]} 10. Bb5 {[%clk 0:02:03]}  Bxf3 {[%clk 0:01:56]} 11. Nxf3 {[%clk 0:02:00]}  Ne4 {[%clk 0:01:49]} 12. Nxe5 {[%clk 0:01:40]}  Nxc3 {[%clk 0:01:41]} 13. Bxc6+ {[%clk 0:01:37]}  bxc6 {[%clk 0:00:59]} 14. Nxc6 {[%clk 0:01:38]}  Nd1+ {[%clk 0:00:59]} 15. Nxa5 {[%clk 0:01:35]}  Nxb2 {[%clk 0:00:59]} 16. Ke2 {[%clk 0:01:28]}  Nd3 {[%clk 0:00:57]} 17. Rad1 {[%clk 0:01:04]}  Nb4 {[%clk 0:00:49]} 18. a3 {[%clk 0:01:04]}  Nd5 {[%clk 0:00:46]} 19. Rd3 {[%clk 0:01:02]}  Ne7 {[%clk 0:00:33]} 20. Rhd1 {[%clk 0:00:54]}  Rxd3 {[%clk 0:00:33]} 21. Rxd3 {[%clk 0:00:55]}  h5 {[%clk 0:00:32]} 22. Nb7 {[%clk 0:00:54]}  Nc6 {[%clk 0:00:29]} 23. Rc3 {[%clk 0:00:49]}  Rh6 {[%clk 0:00:29]} 24. b4 {[%clk 0:00:47]}  Kd7 {[%clk 0:00:29]} 25. Nc5+ {[%clk 0:00:47]}  Kc8 {[%clk 0:00:28]} 26. b5 {[%clk 0:00:32]}  Ne5 {[%clk 0:00:28]} 27. Na6 {[%clk 0:00:31]}  c6 {[%clk 0:00:24]} 28. f4 {[%clk 0:00:30]}  Ng4 {[%clk 0:00:20]} 29. h3 {[%clk 0:00:29]}  Nf6 {[%clk 0:00:18]} 30. Rxc6+ {[%clk 0:00:29]}  Kb7 {[%clk 0:00:18]} 31. Nc5+ {[%clk 0:00:29]}  Kb8 {[%clk 0:00:17]} 32. a4 {[%clk 0:00:28]}  Nd5 {[%clk 0:00:17]} 33. Rxh6 {[%clk 0:00:25]}  gxh6 {[%clk 0:00:18]} 34. Nd7+ {[%clk 0:00:23]}  Kc7 {[%clk 0:00:17]} 35. Ne5 {[%clk 0:00:24]}  Nc3+ {[%clk 0:00:17]} 36. Kd3 {[%clk 0:00:24]}  Nxa4 {[%clk 0:00:18]} 37. Nxf7 {[%clk 0:00:24]}  Kb6 {[%clk 0:00:19]} 38. f5 {[%clk 0:00:24]}  Kxb5 {[%clk 0:00:18]} 39. f6 {[%clk 0:00:22]}  Nc5+ {[%clk 0:00:19]} 40. Kd4 {[%clk 0:00:22]}  Nd7 {[%clk 0:00:19]} 41. Nd6+ {[%clk 0:00:19]}  Kc6 {[%clk 0:00:18]} 42. Ne4 {[%clk 0:00:20]}  a5 {[%clk 0:00:17]} 43. Kc4 {[%clk 0:00:11]}  a4 {[%clk 0:00:18]} 44. Kc3 {[%clk 0:00:03]}  Kd5 {[%clk 0:00:18]} 45. Ng3 {[%clk 0:00:02]}  h4 {[%clk 0:00:14]} 46. Nf5 {[%clk 0:00:02]}  Ke5 {[%clk 0:00:14]} 47. Nxh4 {[%clk 0:00:02]}  Nxf6 {[%clk 0:00:12]} 48. Nf3+ {[%clk 0:00:02]}  Ke4 {[%clk 0:00:12]} 49. Nd4 {[%clk 0:00:03]}  Kxe3 {[%clk 0:00:11]} 50. Nf5+ {[%clk 0:00:04]}  Kf2 {[%clk 0:00:11]} 51. g4 {[%clk 0:00:04]}  Kg2 {[%clk 0:00:10]} 52. h4 {[%clk 0:00:04]}  Nxg4 {[%clk 0:00:10]} 53. h5 {[%clk 0:00:05]}  Nf6 {[%clk 0:00:10]} 54. Nxh6 {[%clk 0:00:03]}  Nxh5 {[%clk 0:00:10]} 55. Kb4 {[%clk 0:00:04]}  Ng3 {[%clk 0:00:10]} 56. Ka3 {[%clk 0:00:04]}  Ne4 {[%clk 0:00:08]} 57. Nf5 {[%clk 0:00:04]}  Kf3 {[%clk 0:00:09]} 58. Nd4+ {[%clk 0:00:04]}  Ke3 {[%clk 0:00:09]} 59. Nc2+ {[%clk 0:00:05]}  Kd2 {[%clk 0:00:09]} 60. Nb4 {[%clk 0:00:05]}  Nc3 {[%clk 0:00:09]} 61. Nc6 {[%clk 0:00:03]}  Nb5+ {[%clk 0:00:09]} 62. Kxa4 {[%clk 0:00:04]} 1/2-1/2


[Site "https://www.chess.com"]

[Event "Titled Tuesday Blitz February 14 Late 2023"]
[White "Firat, Burak"]
[Black "Fan_Of_Chucky"]
[WhiteFideId "6305881"]
[WhiteElo "2456"]
[BlackElo "2398"]
[Result "1-0"]
[Round "01"]
[TimeControl "180+2"]
[Date "2023.02.14"]
[WhiteClock "0:02:10"]
[BlackClock "0:01:14"]

1. Nf3 {[%clk 0:03:00]}  Nf6 {[%clk 0:02:56]} 2. g3 {[%clk 0:03:01]}  g6 {[%clk 0:02:55]} 3. b4 {[%clk 0:03:00]}  e6 {[%clk 0:02:44]} 4. a3 {[%clk 0:02:59]}  d6 {[%clk 0:02:40]} 5. Bb2 {[%clk 0:02:59]}  e5 {[%clk 0:02:41]} 6. Bg2 {[%clk 0:02:59]}  Bg7 {[%clk 0:02:42]} 7. c4 {[%clk 0:02:59]}  O-O {[%clk 0:02:42]} 8. d3 {[%clk 0:02:57]}  c6 {[%clk 0:02:43]} 9. O-O {[%clk 0:02:56]}  Nbd7 {[%clk 0:02:43]} 10. Nbd2 {[%clk 0:02:55]}  Qc7 {[%clk 0:02:44]} 11. Rc1 {[%clk 0:02:53]}  d5 {[%clk 0:02:41]} 12. cxd5 {[%clk 0:02:52]}  Nxd5 {[%clk 0:02:42]} 13. Qc2 {[%clk 0:02:49]}  b6 {[%clk 0:02:26]} 14. Qxc6 {[%clk 0:02:29]}  Qxc6 {[%clk 0:02:27]} 15. Rxc6 {[%clk 0:02:29]}  Bb7 {[%clk 0:02:22]} 16. Rc2 {[%clk 0:02:27]}  b5 {[%clk 0:02:06]} 17. Rfc1 {[%clk 0:02:25]}  N7b6 {[%clk 0:02:02]} 18. Bxe5 {[%clk 0:02:22]}  Bxe5 {[%clk 0:01:58]} 19. Nxe5 {[%clk 0:02:23]}  Rfe8 {[%clk 0:01:58]} 20. Ndf3 {[%clk 0:02:22]}  f6 {[%clk 0:01:53]} 21. Nc6 {[%clk 0:02:21]}  Bxc6 {[%clk 0:01:52]} 22. Rxc6 {[%clk 0:02:22]}  Rxe2 {[%clk 0:01:52]} 23. Nd4 {[%clk 0:02:21]}  Ree8 {[%clk 0:01:41]} 24. Nxb5 {[%clk 0:02:18]}  a5 {[%clk 0:01:31]} 25. Nc7 {[%clk 0:02:10]}  Rad8 {[%clk 0:01:14]} 1-0


[Site "https://www.chess.com"]

[Event "Titled Tuesday Blitz February 14 Late 2023"]
[White "Kostiukov, Alexandr"]
[Black "Gascon Del Nogal, Jose Rafael"]
[WhiteFideId "14108100"]
[BlackFideId "3902463"]
[WhiteElo "2271"]
[BlackElo "2459"]
[Result "0-1"]
[Round "01"]
[TimeControl "180+2"]
[Date "2023.02.14"]
[WhiteClock "0:00:40"]
[BlackClock "0:01:22"]

1. g3 {[%clk 0:02:56]}  d5 {[%clk 0:02:58]} 2. Bg2 {[%clk 0:02:57]}  e5 {[%clk 0:02:58]} 3. d3 {[%clk 0:02:56]}  Nf6 {[%clk 0:02:57]} 4. e4 {[%clk 0:02:56]}  dxe4 {[%clk 0:02:56]} 5. dxe4 {[%clk 0:02:56]}  Qxd1+ {[%clk 0:02:57]} 6. Kxd1 {[%clk 0:02:54]}  Bc5 {[%clk 0:02:57]} 7. f3 {[%clk 0:02:55]}  h5 {[%clk 0:02:56]} 8. h4 {[%clk 0:02:53]}  Nc6 {[%clk 0:02:51]} 9. Nd2 {[%clk 0:02:50]}  Be6 {[%clk 0:02:49]} 10. Bh3 {[%clk 0:02:50]}  Bxg1 {[%clk 0:02:35]} 11. Bxe6 {[%clk 0:02:49]}  Bf2 {[%clk 0:02:36]} 12. Bh3 {[%clk 0:02:34]}  Bxg3 {[%clk 0:02:35]} 13. Rg1 {[%clk 0:02:35]}  Bxh4 {[%clk 0:02:27]} 14. Rxg7 {[%clk 0:02:32]}  Ne7 {[%clk 0:02:25]} 15. Rg1 {[%clk 0:02:16]}  Bf2 {[%clk 0:02:20]} 16. Rg2 {[%clk 0:02:13]}  Be3 {[%clk 0:02:20]} 17. Nc4 {[%clk 0:02:11]}  Bxc1 {[%clk 0:02:20]} 18. Rxc1 {[%clk 0:02:09]}  Ng6 {[%clk 0:02:20]} 19. Bf5 {[%clk 0:02:01]}  Nh4 {[%clk 0:02:07]} 20. Rg3 {[%clk 0:01:24]}  Nxf5 {[%clk 0:02:03]} 21. exf5 {[%clk 0:01:24]}  h4 {[%clk 0:01:56]} 22. Rh3 {[%clk 0:01:23]}  O-O-O+ {[%clk 0:01:56]} 23. Ke1 {[%clk 0:01:18]}  Rd4 {[%clk 0:01:37]} 24. b3 {[%clk 0:01:09]}  Rf4 {[%clk 0:01:31]} 25. Ne3 {[%clk 0:00:53]}  e4 {[%clk 0:01:27]} 26. fxe4 {[%clk 0:00:50]}  Rxe4 {[%clk 0:01:27]} 27. Kf2 {[%clk 0:00:47]}  Rhe8 {[%clk 0:01:27]} 28. Re1 {[%clk 0:00:43]}  Rxe3 {[%clk 0:01:19]} 29. Rhxe3 {[%clk 0:00:41]}  Ng4+ {[%clk 0:01:19]} 30. Kf3 {[%clk 0:00:41]}  Rxe3+ {[%clk 0:01:19]} 31. Rxe3 {[%clk 0:00:41]}  Nxe3 {[%clk 0:01:20]} 32. Kxe3 {[%clk 0:00:41]}  Kd7 {[%clk 0:01:21]} 33. Kf4 {[%clk 0:00:40]}  Kd6 {[%clk 0:01:22]} 0-1


[Site "https://www.chess.com"]

[Event "Titled Tuesday Blitz February 14 Late 2023"]
[White "Szente Varga, Fruzsina"]
[Black "Cruz, Jonathan"]
[WhiteFideId "712264"]
[BlackFideId "3802124"]
[WhiteElo "2075"]
[BlackElo "2328"]
[Result "0-1"]
[Round "01"]
[TimeControl "180+2"]
[Date "2023.02.14"]
[WhiteClock "0:00:17"]
[BlackClock "0:00:16"]

1. e4 {[%clk 0:02:54]}  e5 {[%clk 0:02:54]} 2. Nf3 {[%clk 0:02:51]}  Nc6 {[%clk 0:02:51]} 3. Bb5 {[%clk 0:02:49]}  a6 {[%clk 0:02:51]} 4. Ba4 {[%clk 0:02:43]}  Nf6 {[%clk 0:02:36]} 5. Qe2 {[%clk 0:02:33]}  d6 {[%clk 0:02:26]} 6. O-O {[%clk 0:02:31]}  b5 {[%clk 0:02:20]} 7. Bb3 {[%clk 0:02:31]}  Be7 {[%clk 0:02:21]} 8. c3 {[%clk 0:02:30]}  O-O {[%clk 0:02:20]} 9. Rd1 {[%clk 0:02:29]}  Bg4 {[%clk 0:02:06]} 10. h3 {[%clk 0:02:28]}  Bh5 {[%clk 0:02:06]} 11. d4 {[%clk 0:02:20]}  exd4 {[%clk 0:01:51]} 12. cxd4 {[%clk 0:02:20]}  d5 {[%clk 0:01:44]} 13. e5 {[%clk 0:02:16]}  Ne4 {[%clk 0:01:44]} 14. Be3 {[%clk 0:02:07]}  Kh8 {[%clk 0:01:41]} 15. Nbd2 {[%clk 0:02:07]}  f6 {[%clk 0:01:39]} 16. Rac1 {[%clk 0:01:45]}  Na5 {[%clk 0:01:26]} 17. Bc2 {[%clk 0:01:39]}  Nxd2 {[%clk 0:01:19]} 18. Rxd2 {[%clk 0:01:32]}  Nc4 {[%clk 0:01:17]} 19. Rdd1 {[%clk 0:00:54]}  fxe5 {[%clk 0:00:46]} 20. dxe5 {[%clk 0:00:42]}  Rxf3 {[%clk 0:00:35]} 21. gxf3 {[%clk 0:00:41]}  Nxe5 {[%clk 0:00:35]} 22. Be4 {[%clk 0:00:31]}  c6 {[%clk 0:00:22]} 23. Bf4 {[%clk 0:00:26]}  Bd6 {[%clk 0:00:20]} 24. Bxd5 {[%clk 0:00:19]}  cxd5 {[%clk 0:00:18]} 25. Bxe5 {[%clk 0:00:19]}  Qg5+ {[%clk 0:00:18]} 26. Bg3 {[%clk 0:00:18]}  Bxg3 {[%clk 0:00:18]} 27. fxg3 {[%clk 0:00:19]}  Qxg3+ {[%clk 0:00:18]} 28. Qg2 {[%clk 0:00:20]}  Qe5 {[%clk 0:00:17]} 29. Re1 {[%clk 0:00:20]}  Qf6 {[%clk 0:00:16]} 30. Rc7 {[%clk 0:00:19]}  Rf8 {[%clk 0:00:16]} 31. Rf1 {[%clk 0:00:18]}  Qb6+ {[%clk 0:00:16]} 32. Kh1 {[%clk 0:00:16]}  Qxc7 {[%clk 0:00:16]} 33. Rg1 {[%clk 0:00:17]}  Qf7 {[%clk 0:00:16]} 34. Rf1 {[%clk 0:00:17]}  Bxf3 {[%clk 0:00:16]} 0-1


[Site "https://www.chess.com"]